fUST/lending_fUST_20240615
["ID","MTS","AMOUNT","RATE_DAILY","PERIOD"]
[329499094,1718398255156,-205.438059,0.000168,2]
[329499095,1718398255185,-2037.00298008,0.00016984,2]
[329499096,1718398255220,-3960.013233,0.00016985,15]
[329499097,1718398255260,-151.0,0.00016985,2]
[329499098,1718398255275,-151.0,0.00016985,2]
[329499099,1718398255300,-151.0,0.00016985,2]
[329499100,1718398255321,-500.0,0.00016985,2]
[329499101,1718398255373,-500.0,0.00016985,2]
[329499102,1718398255385,-151.0,0.00016985,2]
[329499103,1718398255414,-433.4285733,0.00016985,2]
[329499104,1718398255452,-153.513805,0.00016985,2]
[329499105,1718398255476,-151.0,0.00016985,2]
[329499106,1718398255512,-151.0,0.00016985,2]
[329499107,1718398255524,-500.0,0.00016985,2]
[329499108,1718398255537,-500.0,0.00016985,2]
[329499109,1718398255575,-537.27,0.00016985,2]
[329499110,1718398255596,-500.0,0.00016985,2]
[329499111,1718398255617,-688.72,0.00016985,2]
[329499112,1718398255649,-500.0,0.00016985,2]
[329499113,1718398255665,-151.0,0.00016985,2]
[329499114,1718398255684,-500.0,0.00016985,2]
[329499115,1718398255718,-365.95232418,0.00016985,2]
[329499116,1718398255741,-500.0,0.00016985,2]
[329499117,1718398255753,-151.0,0.00016985,2]
[329499118,1718398255783,-151.0,0.00016985,2]
[329499119,1718398255802,-151.0,0.00016985,2]
[329499120,1718398255815,-151.0,0.00016985,2]
[329499121,1718398255842,-500.0,0.00016985,2]
[329499122,1718398255869,-500.0,0.00016985,2]
[329499123,1718398255882,-500.0,0.00016985,2]
[329499124,1718398255925,-500.0,0.00016985,2]
[329499125,1718398255946,-500.0,0.00016985,2]
[329499126,1718398255977,-531.72,0.00016985,2]
[329499127,1718398256013,-151.0,0.00016985,2]
[329499128,1718398256046,-15425.75,0.00016985,2]
[329499129,1718398256097,-1778.17,0.00016985,2]
[329499130,1718398256143,-2206.5,0.00016985,2]
[329499131,1718398256180,-151.0,0.00016985,2]
[329499132,1718398256219,-151.0,0.00016985,2]
[329499133,1718398256276,-500.0,0.00016985,2]
[329499134,1718398256309,-2001.59,0.00016985,2]
[329499135,1718398256332,-151.0,0.00016985,2]
[329499136,1718398256343,-177.840814,0.00016985,2]
[329499137,1718398256365,-151.0,0.00016985,2]
[329499138,1718398256396,-553.0,0.00016985,2]
[329499139,1718398256407,-151.0,0.00016985,2]
[329499140,1718398256439,-151.0,0.00016985,2]
[329499141,1718398256457,-245.901792,0.00016985,2]
[329499142,1718398256470,-737.86,0.00016985,2]
[329499143,1718398256496,-500.0,0.00016985,2]
[329499144,1718398256526,-500.0,0.00016985,2]
[329499145,1718398256559,-151.0,0.00016985,2]
[329499146,1718398256612,-500.0,0.00016985,2]
[329499147,1718398256651,-151.0,0.00016985,2]
[329499148,1718398256671,-151.0,0.00016985,2]
[329499149,1718398256684,-500.0,0.00016985,2]
[329499150,1718398256697,-500.0,0.00016985,2]
[329499151,1718398256744,-151.0,0.00016985,2]
[329499152,1718398256776,-5838.77,0.00016985,2]
[329499153,1718398256805,-151.0,0.00016985,2]
[329499154,1718398256820,-500.0,0.00016985,2]
[329499155,1718398256881,-151.0,0.00016985,2]
[329499156,1718398256895,-441.05064701,0.00016985,2]
[329499157,1718398256911,-500.0,0.00016985,2]
[329499158,1718398256926,-500.0,0.00016985,2]
[329499159,1718398256948,-500.0,0.00016985,2]
[329499160,1718398256966,-594.15,0.00016985,2]
[329499161,1718398257016,-500.0,0.00016985,2]
[329499162,1718398257042,-903.13,0.00016985,2]
[329499163,1718398257065,-500.0,0.00016985,2]
[329499164,1718398257077,-500.0,0.00016985,2]
[329499165,1718398257110,-500.0,0.00016985,2]
[329499166,1718398257122,-500.0,0.00016985,2]
[329499167,1718398257136,-1363.31,0.00016985,2]
[329499168,1718398257203,-151.0,0.00016985,2]
[329499169,1718398257238,-500.0,0.00016985,2]
[329499170,1718398257255,-151.0,0.00016985,2]
[329499171,1718398257280,-500.0,0.00016985,2]
[329499172,1718398257294,-151.0,0.00016985,2]
[329499173,1718398257321,-843.09,0.00016985,2]
[329499174,1718398257339,-151.0,0.00016985,2]
[329499175,1718398257354,-500.0,0.00016985,2]
[329499176,1718398257383,-151.0,0.00016985,2]
[329499177,1718398257394,-500.0,0.00016985,2]
[329499178,1718398257416,-151.0,0.00016985,2]
[329499179,1718398257462,-500.0,0.00016985,2]
[329499180,1718398257521,-500.0,0.00016985,2]
[329499181,1718398257541,-151.0,0.00016985,2]
[329499182,1718398257563,-500.0,0.00016985,2]
[329499183,1718398257603,-500.0,0.00016985,2]
[329499184,1718398257656,-151.0,0.00016985,2]
[329499185,1718398257669,-151.0,0.00016985,2]
[329499186,1718398257692,-1473.16,0.00016985,2]
[329499187,1718398257712,-500.0,0.00016985,2]
[329499188,1718398257728,-151.0,0.00016985,2]
[329499189,1718398257774,-151.0,0.00016985,2]
[329499190,1718398257785,-500.0,0.00016986,2]
[329499191,1718398257805,-483.22371629,0.00016986,2]
[329499192,1718398257822,-295.05,0.00016986,2]
[329499193,1718398257879,-181.03536778,0.00016986,2]
[329499194,1718398257903,-151.0,0.00016986,2]
[329499195,1718398257917,-500.0,0.00016986,2]
[329499196,1718398257942,-151.0,0.00016986,2]
[329499197,1718398257980,-293.95,0.00016986,2]
[329499198,1718398257992,-500.0,0.00016986,2]
[329499199,1718398258015,-500.0,0.00016986,2]
[329499200,1718398258039,-500.0,0.00016986,2]
[329499201,1718398258064,-500.0,0.00016986,2]
[329499202,1718398258082,-427.74037649,0.00016986,2]
[329499203,1718398258113,-529.77,0.00016986,2]
[329499204,1718398258131,-624.73630589,0.00016986,2]
[329499205,1718398258204,-159.57116,0.00016986,2]
[329499206,1718398258224,-500.0,0.00016986,2]
[329499207,1718398258237,-500.0,0.00016986,2]
[329499208,1718398258285,-153.47742205,0.00016986,2]
[329499209,1718398258296,-500.0,0.00016986,2]
[329499210,1718398258309,-152.00988186,0.00016986,2]
[329499211,1718398258352,-500.0,0.00016986,2]
[329499212,1718398258364,-151.0,0.00016986,2]
[329499213,1718398258377,-500.0,0.00016986,2]
[329499214,1718398258416,-151.0,0.00016986,2]
[329499215,1718398258452,-151.0,0.00016986,2]
[329499216,1718398258464,-500.0,0.00016986,2]
[329499217,1718398258515,-500.0,0.00016986,2]
[329499218,1718398258533,-151.0,0.00016986,2]
[329499219,1718398258544,-151.0,0.00016986,2]
[329499220,1718398258596,-1681.84,0.00016986,2]
[329499221,1718398258668,-151.0,0.00016986,2]
[329499222,1718398258753,-151.0,0.00016986,2]
[329499223,1718398258765,-500.0,0.00016986,2]
[329499224,1718398258796,-500.0,0.00016986,2]
[329499225,1718398258832,-151.0,0.00016986,2]
[329499226,1718398258849,-418.58,0.00016986,2]
[329499227,1718398258880,-500.0,0.00016986,2]
[329499228,1718398258900,-737.32,0.00016986,2]
[329499229,1718398258976,-151.0,0.00016986,2]
[329499230,1718398258991,-2135.23,0.00016986,2]
[329499231,1718398259015,-500.0,0.00016986,2]
[329499232,1718398259044,-500.0,0.00016986,2]
[329499233,1718398259062,-500.0,0.00016986,2]
[329499234,1718398259113,-151.0,0.00016986,2]
[329499235,1718398259144,-182.014798,0.00016986,2]
[329499236,1718398259197,-500.0,0.00016986,2]
[329499237,1718398259234,-151.0,0.00016986,2]
[329499238,1718398259285,-500.0,0.00016986,2]
[329499239,1718398259409,-151.0,0.00016986,2]
[329499240,1718398259429,-151.0,0.00016986,2]
[329499241,1718398259446,-151.0,0.00016986,2]
[329499242,1718398259487,-500.0,0.00016986,2]
[329499243,1718398259532,-4635.43,0.00016986,2]
[329499244,1718398259585,-151.0,0.00016986,2]
[329499245,1718398259602,-236.427274,0.00016986,2]
[329499246,1718398259614,-500.0,0.00016986,2]
[329499247,1718398259628,-500.0,0.00016986,2]
[329499248,1718398259672,-500.0,0.00016986,2]
[329499249,1718398259684,-151.0,0.00016986,2]
[329499250,1718398259745,-1000.0,0.00017,6]
[329499251,1718398259799,-410.876118,0.00017,2]
[329499252,1718398259867,-205.438059,0.00017,2]
[329499253,1718398259886,-1390.15227113,0.0001716,2]
[329499254,1718398259948,-151.0,0.00017259,2]
[329499255,1718398259974,-151.0,0.00017259,2]
[329499256,1718398260000,-500.0,0.00017259,2]
[329499257,1718398260044,-500.0,0.00017259,2]
[329499258,1718398260076,-500.0,0.00017259,2]
[329499259,1718398260096,-500.0,0.00017259,2]
[329499260,1718398260141,-537.27,0.00017259,2]
[329499261,1718398260196,-688.72,0.00017259,2]
[329499262,1718398260207,-500.0,0.00017259,2]
[329499263,1718398260224,-500.0,0.00017259,2]
[329499264,1718398260249,-500.0,0.00017259,2]
[329499265,1718398260281,-151.0,0.00017259,2]
[329499266,1718398260334,-500.0,0.00017259,2]
[329499267,1718398260344,-500.0,0.00017259,2]
[329499268,1718398260355,-500.0,0.00017259,2]
[329499269,1718398260370,-180.66,0.00017259,2]
[329499270,1718398260428,-531.72,0.00017259,2]
[329499271,1718398260462,-15425.75,0.00017259,2]
[329499272,1718398260475,-1778.17,0.00017259,2]
[329499273,1718398260487,-2206.5,0.00017259,2]
[329499274,1718398260500,-151.0,0.00017259,2]
[329499275,1718398260530,-500.0,0.00017259,2]
[329499276,1718398260549,-2001.59,0.00017259,2]
[329499277,1718398260562,-553.0,0.00017259,2]
[329499278,1718398260574,-151.0,0.00017259,2]
[329499279,1718398260593,-737.86,0.00017259,2]
[329499280,1718398260604,-500.0,0.00017259,2]
[329499281,1718398260672,-151.0,0.00017259,2]
[329499282,1718398260692,-151.0,0.00017259,2]
[329499283,1718398260716,-500.0,0.00017259,2]
[329499284,1718398260751,-151.0,0.00017259,2]
[329499285,1718398260780,-151.0,0.00017259,2]
[329499286,1718398260831,-151.0,0.00017259,2]
[329499287,1718398260880,-151.0,0.00017259,2]
[329499288,1718398260893,-500.0,0.00017259,2]
[329499289,1718398260924,-500.0,0.00017259,2]
[329499290,1718398260955,-5838.77,0.00017259,2]
[329499291,1718398260996,-500.0,0.00017259,2]
[329499292,1718398261052,-151.0,0.00017259,2]
[329499293,1718398261079,-598.34,0.00017259,2]
[329499294,1718398261126,-500.0,0.00017259,2]
[329499295,1718398261172,-500.0,0.00017259,2]
[329499296,1718398261203,-594.15,0.00017259,2]
[329499297,1718398261219,-500.0,0.00017259,2]
[329499298,1718398261266,-903.13,0.00017259,2]
[329499299,1718398261296,-500.0,0.00017259,2]
[329499300,1718398261422,-500.0,0.00017259,2]
[329499301,1718398261489,-500.0,0.00017259,2]
[329499302,1718398261512,-484.08,0.00017259,2]
[329499303,1718398261572,-1363.31,0.00017259,2]
[329499304,1718398261603,-151.0,0.00017259,2]
[329499305,1718398261636,-500.0,0.00017259,2]
[329499306,1718398261649,-151.0,0.00017259,2]
[329499307,1718398261677,-843.09,0.00017259,2]
[329499308,1718398261690,-151.0,0.00017259,2]
[329499309,1718398261749,-500.0,0.00017259,2]
[329499310,1718398261792,-151.0,0.00017259,2]
[329499311,1718398261864,-500.0,0.00017259,2]
[329499312,1718398261926,-500.0,0.00017259,2]
[329499313,1718398261940,-151.0,0.00017259,2]
[329499314,1718398261955,-500.0,0.00017259,2]
[329499315,1718398261969,-151.0,0.00017259,2]
[329499316,1718398262007,-500.0,0.00017259,2]
[329499317,1718398262032,-500.0,0.00017259,2]
[329499318,1718398262080,-1473.16,0.00017259,2]
[329499319,1718398262112,-500.0,0.00017259,2]
[329499320,1718398262130,-500.0,0.0001726,2]
[329499321,1718398262143,-151.0,0.0001726,2]
[329499322,1718398262180,-151.0,0.0001726,2]
[329499323,1718398262203,-500.0,0.0001726,2]
[329499324,1718398262215,-500.0,0.0001726,2]
[329499325,1718398262247,-500.0,0.0001726,2]
[329499326,1718398262271,-529.77,0.0001726,2]
[329499327,1718398262289,-500.0,0.0001726,2]
[329499328,1718398262303,-500.0,0.0001726,2]
[329499329,1718398262372,-500.0,0.0001726,2]
[329499330,1718398262414,-500.0,0.0001726,2]
[329499331,1718398262428,-500.0,0.0001726,2]
[329499332,1718398262471,-500.0,0.0001726,2]
[329499333,1718398262516,-397.42854314,0.0001726,2]
[329499334,1718398262531,-151.0,0.0001726,2]
[329499335,1718398262560,-151.0,0.0001726,2]
[329499336,1718398262577,-1681.84,0.0001726,2]
[329499337,1718398262604,-533.99067711,0.0001726,2]
[329499338,1718398262620,-500.0,0.0001726,2]
[329499339,1718398262660,-500.0,0.0001726,2]
[329499340,1718398262681,-737.32,0.0001726,2]
[329499341,1718398262700,-2135.23,0.0001726,2]
[329499342,1718398262733,-500.0,0.0001726,2]
[329499343,1718398262746,-500.0,0.0001726,2]
[329499344,1718398262759,-151.0,0.0001726,2]
[329499345,1718398262804,-182.495754,0.0001726,2]
[329499346,1718398262832,-500.0,0.0001726,2]
[329499347,1718398262863,-151.0,0.0001726,2]
[329499348,1718398262877,-191.783682,0.0001726,2]
[329499349,1718398262927,-500.0,0.0001726,2]
[329499350,1718398262938,-4635.43,0.0001726,2]
[329499351,1718398262950,-151.0,0.0001726,2]
[329499352,1718398262965,-186.91255128,0.0001726,2]
[329499353,1718398262979,-500.0,0.0001726,2]
[329499354,1718398262990,-197.8,0.00017308,2]
[329499355,1718398263016,-156.35283823,0.00017358,3]
[329499356,1718398263049,-197.8,0.00017451,2]
[329499357,1718398263069,-24456.92852084,0.000175,2]
[329499358,1718398263129,-151.0,0.000175,2]
[329499359,1718398263146,-151.0,0.000175,2]
[329499360,1718398263173,-151.0,0.000175,2]
[329499361,1718398263220,-151.0,0.000175,2]
[329499362,1718398263324,-151.0,0.000175,2]
[329499363,1718398263343,-151.0,0.000175,2]
[329499364,1718398263356,-1009.92016023,0.00017521,2]
[329499365,1718398263428,-155.0062005,0.00017531,2]
[329499366,1718398263452,-195.01045014,0.00017531,2]
[329499367,1718398263471,-500.0,0.00017531,2]
[329499368,1718398263484,-691.30254999,0.00017532,2]
[329499369,1718398263518,-2110.51708375,0.00017532,2]
[329499370,1718398263530,-295.76670435,0.00017532,2]
[329499371,1718398263563,-2232.1334245,0.00017532,2]
[329499372,1718398263595,-155.15180837,0.00017532,2]
[329499373,1718398263616,-151.0,0.00017532,2]
[329499374,1718398263628,-151.0,0.00017532,2]
[329499375,1718398263652,-2475.34668873,0.00017533,2]
[329499376,1718398263674,-1162.45478296,0.00017533,2]
[329499377,1718398263695,-500.0,0.00017533,2]
[329499378,1718398263708,-500.0,0.00017533,2]
[329499379,1718398263719,-451.26061929,0.00017533,2]
[329499380,1718398263736,-500.0,0.00017533,2]
[329499381,1718398263746,-537.27,0.00017533,2]
[329499382,1718398263758,-688.72,0.00017533,2]
[329499383,1718398263769,-500.0,0.00017533,2]
[329499384,1718398263800,-500.0,0.00017533,2]
[329499385,1718398263812,-201.01,0.00017533,2]
[329499386,1718398263880,-350.79465647,0.00017533,2]
[329499387,1718398263924,-154.1118477,0.00017533,2]
[329499388,1718398263937,-531.72,0.00017533,2]
[329499389,1718398263972,-15425.75,0.00017533,2]
[329499390,1718398263989,-1778.17,0.00017533,2]
[329499391,1718398264027,-2206.5,0.00017533,2]
[329499392,1718398264057,-500.0,0.00017533,2]
[329499393,1718398264086,-151.0,0.00017533,2]
[329499394,1718398264097,-2001.59,0.00017533,2]
[329499395,1718398264111,-553.0,0.00017533,2]
[329499396,1718398264173,-151.0,0.00017533,2]
[329499397,1718398264185,-737.86,0.00017533,2]
[329499398,1718398264199,-500.0,0.00017533,2]
[329499399,1718398264225,-151.0,0.00017533,2]
[329499400,1718398264257,-500.0,0.00017533,2]
[329499401,1718398264268,-151.0,0.00017533,2]
[329499402,1718398264287,-151.0,0.00017533,2]
[329499403,1718398264299,-500.0,0.00017533,2]
[329499404,1718398264309,-500.0,0.00017533,2]
[329499405,1718398264321,-5838.77,0.00017533,2]
[329499406,1718398264332,-500.0,0.00017533,2]
[329499407,1718398264400,-500.0,0.00017533,2]
[329499408,1718398264418,-500.0,0.00017533,2]
[329499409,1718398264446,-594.15,0.00017533,2]
[329499410,1718398264458,-500.0,0.00017533,2]
[329499411,1718398264469,-903.13,0.00017533,2]
[329499412,1718398264508,-500.0,0.00017533,2]
[329499413,1718398264523,-500.0,0.00017533,2]
[329499414,1718398264540,-500.0,0.00017533,2]
[329499415,1718398264553,-1363.31,0.00017533,2]
[329499416,1718398264570,-151.0,0.00017533,2]
[329499417,1718398264599,-500.0,0.00017533,2]
[329499418,1718398264618,-843.09,0.00017533,2]
[329499419,1718398264633,-500.0,0.00017533,2]
[329499420,1718398264647,-500.0,0.00017533,2]
[329499421,1718398264679,-151.0,0.00017533,2]
[329499422,1718398264695,-392.75061859,0.00017533,2]
[329499423,1718398264742,-500.0,0.00017533,2]
[329499424,1718398264755,-1473.16,0.00017533,2]
[329499425,1718398264779,-500.0,0.00017533,2]
[329499426,1718398264806,-294.77567397,0.00017534,2]
[329499427,1718398264823,-500.0,0.00017534,2]
[329499428,1718398264838,-529.77,0.00017534,2]
[329499429,1718398264856,-500.0,0.00017534,2]
[329499430,1718398264896,-500.0,0.00017534,2]
[329499431,1718398264914,-500.0,0.00017534,2]
[329499432,1718398264950,-500.0,0.00017534,2]
[329499433,1718398264971,-500.0,0.00017534,2]
[329499434,1718398265005,-500.0,0.00017534,2]
[329499435,1718398265026,-151.0,0.00017534,2]
[329499436,1718398265060,-151.0,0.00017534,2]
[329499437,1718398265075,-947.76134387,0.00017534,2]
[329499438,1718398266244,-151.0,0.00017534,2]
[329499439,1718398266255,-151.0,0.00017534,2]
[329499440,1718398266269,-500.0,0.00017534,2]
[329499441,1718398266284,-215.101744,0.00017534,2]
[329499442,1718398266296,-500.0,0.00017534,2]
[329499443,1718398266312,-737.32,0.00017534,2]
[329499444,1718398266324,-2135.23,0.00017534,2]
[329499445,1718398266337,-500.0,0.00017534,2]
[329499446,1718398266348,-500.0,0.00017534,2]
[329499447,1718398266371,-500.0,0.00017534,2]
[329499448,1718398266386,-500.0,0.00017534,2]
[329499449,1718398266399,-2688.52113779,0.00017534,2]
[329499450,1718398266440,-1946.90886221,0.00017534,2]
[329499451,1718398266460,-500.0,0.00017534,2]
[329499452,1718398266479,-197.8,0.00017594,2]
[329499453,1718398266493,-197.8,0.00017737,2]
[329499454,1718398266522,-589.394411,0.00017769,2]
[329499455,1718398266536,-363.04508795,0.00017807,2]
[329499456,1718398266578,-136.95491205,0.00017807,2]
[329499457,1718398266762,-500.0,0.00017807,2]
[329499458,1718398266775,-500.0,0.00017807,2]
[329499459,1718398266786,-537.27,0.00017807,2]
[329499460,1718398266798,-688.72,0.00017807,2]
[329499461,1718398266813,-500.0,0.00017807,2]
[329499462,1718398266840,-500.0,0.00017807,2]
[329499463,1718398266855,-531.72,0.00017807,2]
[329499464,1718398266869,-1778.17,0.00017807,2]
[329499465,1718398266886,-500.0,0.00017807,2]
[329499466,1718398266922,-2001.59,0.00017807,2]
[329499467,1718398266948,-151.0,0.00017807,2]
[329499468,1718398266963,-553.0,0.00017807,2]
[329499469,1718398266977,-151.0,0.00017807,2]
[329499470,1718398267027,-737.86,0.00017807,2]
[329499471,1718398267044,-151.0,0.00017807,2]
[329499472,1718398267063,-500.0,0.00017807,2]
[329499473,1718398267091,-151.0,0.00017807,2]
[329499474,1718398267112,-588.47,0.00017807,2]
[329499475,1718398267123,-500.0,0.00017807,2]
[329499476,1718398267156,-5838.77,0.00017807,2]
[329499477,1718398267166,-499.28155554,0.00017807,2]
[329499478,1718398267179,-500.0,0.00017807,2]
[329499479,1718398267189,-500.0,0.00017807,2]
[329499480,1718398267201,-594.15,0.00017807,2]
[329499481,1718398267221,-903.13,0.00017807,2]
[329499482,1718398267246,-500.0,0.00017807,2]
[329499483,1718398267278,-500.0,0.00017807,2]
[329499484,1718398267321,-500.0,0.00017807,2]
[329499485,1718398267338,-1363.31,0.00017807,2]
[329499486,1718398267356,-151.0,0.00017807,2]
[329499487,1718398267400,-151.0,0.00017807,2]
[329499488,1718398267413,-500.0,0.00017807,2]
[329499489,1718398267444,-843.09,0.00017807,2]
[329499490,1718398267455,-275.48295176,0.00017807,2]
[329499491,1718398267471,-500.0,0.00017807,2]
[329499492,1718398267485,-151.0,0.00017807,2]
[329499493,1718398267528,-151.0,0.00017807,2]
[329499494,1718398267541,-500.0,0.00017807,2]
[329499495,1718398267552,-1473.16,0.00017807,2]
[329499496,1718398267584,-500.0,0.00017807,2]
[329499497,1718398267596,-529.77,0.00017808,2]
[329499498,1718398267608,-500.0,0.00017808,2]
[329499499,1718398267619,-500.0,0.00017808,2]
[329499500,1718398267632,-500.0,0.00017808,2]
[329499501,1718398267647,-500.0,0.00017808,2]
[329499502,1718398267669,-500.0,0.00017808,2]
[329499503,1718398267700,-149.21160611,0.00017808,2]
[329499504,1718398267715,-350.78839389,0.00017808,2]
[329499505,1718398267740,-500.0,0.00017808,2]
[329499506,1718398267752,-737.32,0.00017808,2]
[329499507,1718398267772,-2135.23,0.00017808,2]
[329499508,1718398267784,-500.0,0.00017808,2]
[329499509,1718398267796,-500.0,0.00017808,2]
[329499510,1718398267816,-500.0,0.00017808,2]
[329499511,1718398267867,-500.0,0.00017808,2]
[329499512,1718398267883,-4635.43,0.00017808,2]
[329499513,1718398267909,-500.0,0.00017808,2]
[329499514,1718398267924,-197.8,0.00017879,2]
[329499515,1718398267954,-250.677,0.00017885,2]
[329499516,1718398267969,-500.0,0.00017899,2]
[329499517,1718398268004,-500.0,0.00017899,2]
[329499518,1718398268016,-500.0,0.00017967,2]
[329499519,1718398268051,-499.0,0.00017968,2]
[329499520,1718398268086,-1750.0,0.00017968,2]
[329499521,1718398268113,-151.0,0.00017999,2]
[329499522,1718398268137,-151.0,0.00017999,2]
[329499523,1718398268153,-500.0,0.00017999,2]
[329499524,1718398268195,-31900.31698394,0.00018,2]
[329499525,1718398268225,-115.66561673,0.00018,2]
[329499526,1718398268256,-163.07699645,0.00018,2]
[329499527,1718398268269,-155.00155002,0.00018,2]
[329499528,1718398268291,-1355.61945113,0.00018,2]
[329499529,1718398268312,-842.00316035,0.00018,2]
[329499530,1718398268341,-34.8253402,0.00018,2]
[329499531,1718398268386,-323.6746698,0.00018,2]
[329499532,1718398268699,-313.7172,0.00016711,2]
[329499557,1718399435572,-2145.71675816,0.00015189,4]
[329499559,1718399435596,-975.82117543,0.00015189,4]
[329499563,1718399435660,-760.4875951,0.0001519,2]
[329499567,1718399435744,-200.838215,0.00015344,2]
[329499570,1718399435755,-164.358899,0.00016164,2]
[329499573,1718399435769,-161.10257069,0.00016338,2]
[329499574,1718399435797,-300.0,0.00016437,2]
[329499575,1718399435832,-500.0,0.00016438,2]
[329499576,1718399435885,-57.48806047,0.00016438,2]
[329499596,1718399441384,-442.51193953,0.00016438,2]
[329499598,1718399441437,-548.81660986,0.00016438,2]
[329499599,1718399441465,-500.0,0.00016438,2]
[329499600,1718399441496,-470.02047665,0.00016438,2]
[329499601,1718399441600,-29.97952335,0.00016438,2]
[329499602,1718399441625,-500.0,0.00016438,2]
[329499603,1718399441650,-500.0,0.00016438,2]
[329499604,1718399441665,-500.0,0.00016438,2]
[329499605,1718399441706,-500.0,0.00016438,2]
[329499606,1718399441755,-500.0,0.00016438,2]
[329499607,1718399441794,-500.0,0.00016438,2]
[329499608,1718399441819,-500.0,0.00016438,2]
[329499609,1718399441860,-500.0,0.00016438,2]
[329499610,1718399441884,-500.0,0.00016438,2]
[329499611,1718399441898,-530.7,0.00016438,2]
[329499612,1718399441936,-216.17484036,0.00016438,2]
[329499613,1718399441993,-283.82515964,0.00016438,2]
[329499614,1718399442017,-500.0,0.00016438,2]
[329499615,1718399442052,-425.01,0.00016438,2]
[329499616,1718399442077,-500.0,0.00016438,2]
[329499617,1718399442160,-583.22,0.00016438,2]
[329499618,1718399442190,-500.0,0.00016438,2]
[329499619,1718399442218,-500.0,0.00016438,2]
[329499620,1718399442249,-13064.27,0.00016438,2]
[329499621,1718399442280,-1464.51,0.00016438,2]
[329499622,1718399442406,-500.0,0.00016438,2]
[329499623,1718399442476,-500.0,0.00016438,2]
[329499624,1718399442488,-500.0,0.00016438,2]
[329499625,1718399442542,-1660.66,0.00016438,2]
[329499626,1718399442559,-500.0,0.00016438,2]
[329499627,1718399442582,-647.77,0.00016438,2]
[329499628,1718399442596,-5548.88,0.00016438,2]
[329499629,1718399442630,-628.83503317,0.00016438,2]
[329499630,1718399442680,-500.0,0.00016438,2]
[329499631,1718399442737,-500.0,0.00016438,2]
[329499632,1718399442755,-1601.42,0.00016438,2]
[329499633,1718399442766,-500.0,0.00016438,2]
[329499634,1718399442778,-500.0,0.00016438,2]
[329499635,1718399442813,-500.0,0.00016438,2]
[329499636,1718399442828,-500.0,0.00016438,2]
[329499637,1718399442909,-500.0,0.00016438,2]
[329499638,1718399443125,-500.0,0.00016438,2]
[329499639,1718399443186,-456.27127201,0.00016438,2]
[329499640,1718399443198,-500.0,0.00016438,2]
[329499641,1718399443254,-748.03,0.00016438,2]
[329499642,1718399443283,-2123.9086561,0.00016438,2]
[329499643,1718399443445,-1368.8213439,0.00016438,2]
[329499644,1718399443473,-500.0,0.00016438,2]
[329499645,1718399443500,-500.0,0.00016438,2]
[329499646,1718399443531,-500.0,0.00016438,2]
[329499647,1718399443541,-1134.13,0.00016438,2]
[329499648,1718399443554,-500.0,0.00016712,2]